fUST/lending_fUST_20250719
["ID","MTS","AMOUNT","RATE_DAILY","PERIOD"]
[373208114,1752907465528,-422.42559221,0.00016438,2]
[373208115,1752907465558,-460.0,0.00016438,2]
[373208116,1752907465588,-460.0,0.00016438,2]
[373208117,1752907465619,-460.0,0.00016438,2]
[373208118,1752907465650,-301.00433461,0.00016438,2]
[373208119,1752907465685,-500.0,0.00016438,2]
[373208120,1752907465725,-460.0,0.00016438,2]
[373208121,1752907465755,-460.0,0.00016438,2]
[373208122,1752907465784,-460.0,0.00016438,2]
[373208123,1752907465815,-936.82014636,0.00016438,2]
[373208124,1752907465971,-159.49985364,0.00016438,2]
[373208125,1752907465999,-460.0,0.00016438,2]
[373208126,1752907466028,-460.0,0.00016438,2]
[373208127,1752907466057,-460.0,0.00016438,2]
[373208128,1752907466239,-460.0,0.00016438,2]
[373208129,1752907466268,-460.0,0.00016438,2]
[373208130,1752907466301,-760.59,0.00016438,2]
[373208131,1752907466332,-500.0,0.00016438,2]
[373208132,1752907466364,-380.0,0.00016438,2]
[373208133,1752907466396,-460.0,0.00016438,2]
[373208134,1752907466428,-419.05232834,0.00016438,2]
[373208135,1752907466521,-41.71563604,0.00016438,2]
[373208136,1752907466554,-460.0,0.00016438,2]
[373208137,1752907466585,-460.0,0.00016438,2]
[373208138,1752907466615,-460.0,0.00016438,2]
[373208139,1752907466647,-460.0,0.00016438,2]
[373208140,1752907466677,-460.0,0.00016438,2]
[373208141,1752907466708,-460.0,0.00016438,2]
[373208142,1752907466738,-460.0,0.00016438,2]
[373208143,1752907466768,-460.0,0.00016438,2]
[373208144,1752907466799,-460.0,0.00016438,2]
[373208145,1752907466828,-460.0,0.00016438,2]
[373208146,1752907466859,-224.20855611,0.00016438,2]
[373208147,1752907467059,-500.0,0.00016438,2]
[373208148,1752907467091,-500.0,0.00016438,2]
[373208149,1752907467124,-500.0,0.00016438,2]
[373208150,1752907467156,-460.0,0.00016438,2]
[373208151,1752907467186,-460.0,0.00016438,2]
[373208152,1752907467217,-460.0,0.00016438,2]
[373208153,1752907467250,-514.09,0.00016438,2]
[373208154,1752907467283,-460.0,0.00016438,2]
[373208155,1752907467316,-460.0,0.00016438,2]
[373208156,1752907467346,-460.0,0.00016438,2]
[373208157,1752907467460,-531.92669352,0.00016438,2]
[373208158,1752907467492,-460.0,0.00016438,2]
[373208159,1752907467522,-460.0,0.00016438,2]
[373208160,1752907467551,-460.71531938,0.00016438,2]
[373208161,1752907467582,-460.0,0.00016438,2]
[373208162,1752907467612,-432.37950057,0.00016438,2]
[373208163,1752907467642,-460.0,0.00016438,2]
[373208164,1752907467675,-460.0,0.00016438,2]
[373208165,1752907467705,-460.0,0.00016438,2]
[373208166,1752907467737,-460.0,0.00016438,2]
[373208167,1752907467770,-249.95697306,0.00016438,2]
[373208168,1752907468013,-210.04302694,0.00016438,2]
[373208169,1752907468042,-461.24429448,0.00016438,2]
[373208170,1752907468072,-460.0,0.00016438,2]
[373208171,1752907468101,-155.0,0.00016438,2]
[373208172,1752907468137,-460.0,0.00016438,2]
[373208173,1752907468167,-460.0,0.00016438,2]
[373208174,1752907468196,-460.0,0.00016438,2]
[373208175,1752907468226,-460.0,0.00016438,2]
[373208176,1752907468255,-460.0,0.00016438,2]
[373208177,1752907468283,-460.0,0.00016438,2]
[373208178,1752907468312,-462.56205037,0.00016438,2]
[373208179,1752907468341,-460.0,0.00016438,2]
[373208180,1752907468465,-460.0,0.00016438,2]
[373208181,1752907468496,-460.0,0.00016438,2]
[373208182,1752907468527,-3026.68,0.00016438,2]
[373208183,1752907468556,-460.82816085,0.00016438,2]
[373208184,1752907468586,-460.0,0.00016438,2]
[373208185,1752907468852,-460.0,0.00016438,2]
[373208186,1752907468882,-460.0,0.00016438,2]
[373208187,1752907468912,-460.0,0.00016438,2]
[373208188,1752907468943,-460.0,0.00016438,2]
[373208189,1752907468980,-1262.09,0.00016438,2]
[373208190,1752907469011,-460.0,0.00016438,2]
[373208191,1752907469042,-460.0,0.00016438,2]
[373208192,1752907469074,-460.0,0.00016438,2]
[373208193,1752907469235,-1826.87,0.00016438,2]
[373208194,1752907469265,-460.0,0.00016438,2]
[373208195,1752907469297,-460.0,0.00016438,2]
[373208196,1752907469327,-460.0,0.00016438,2]
[373208197,1752907469445,-2968.44,0.00016438,2]
[373208198,1752907470903,-489.85065088,0.00016438,2]
[373208199,1752907470919,-460.0,0.00016438,2]
[373208200,1752907470937,-460.0,0.00016438,2]
[373208201,1752907470955,-460.0,0.00016438,2]
[373208202,1752907470970,-2193.26934912,0.00016438,2]
[373208203,1752907470980,-460.0,0.00016438,2]
[373208204,1752907470990,-460.0,0.00016438,2]
[373208205,1752907471000,-460.0,0.00016438,2]
[373208206,1752907471010,-12.99065088,0.00016438,2]
[373208207,1752907471031,-447.00934912,0.00016438,2]
[373208208,1752907471040,-460.0,0.00016438,2]
[373208209,1752907471050,-638.0,0.00016438,2]
[373208210,1752907471180,-460.0,0.00016438,2]
[373208211,1752907471191,-487.71967378,0.00016438,2]
[373208212,1752907471201,-460.0,0.00016438,2]
[373208213,1752907471211,-346.24343804,0.00016438,2]
[373208214,1752907471221,-460.0,0.00016438,2]
[373208215,1752907471231,-460.84852615,0.00016438,2]
[373208216,1752907471242,-507.12,0.00016438,2]
[373208217,1752907471251,-1358.62,0.00016438,2]
[373208218,1752907471261,-945.99901291,0.00016438,2]
[373208222,1752907548795,4159.4153474,0.00015651,2]
[373208223,1752907559683,171.79987663,7.5e-07,2]
[373208224,1752907574333,5000.0,0.000163,2]
[373208225,1752907582821,499.83931157,0.00015945,2]
[373208226,1752907583204,249.91965579,0.00015945,2]
[373208227,1752907590125,5000.0,0.000163,2]
[373208228,1752907605431,5000.0,0.000163,2]
[373208230,1752907616590,-154.62392442,0.00016337,2]
[373208231,1752907616621,-154.62392441,0.00016337,2]
[373208232,1752907616652,-154.62392441,0.00016337,2]
[373208233,1752907616683,-300.0,0.00016436,2]
[373208234,1752907616714,-300.0,0.00016437,2]
[373208235,1752907616745,-300.0,0.00016437,2]
[373208236,1752907616779,-1200.0,0.00016437,2]
[373208237,1752907616808,-300.0,0.00016437,2]
[373208238,1752907616839,-1200.0,0.00016437,2]
[373208239,1752907616870,-159.04098709,0.00016438,2]
[373208240,1752907616900,-460.0,0.00016438,2]
[373208241,1752907616930,-462.07670052,0.00016438,2]
[373208242,1752907616961,-460.0,0.00016438,2]
[373208243,1752907616991,-460.0,0.00016438,2]
[373208244,1752907617022,-460.0,0.00016438,2]
[373208245,1752907617051,-460.0,0.00016438,2]
[373208246,1752907617080,-460.0,0.00016438,2]
[373208247,1752907617109,-460.0,0.00016438,2]
[373208248,1752907617138,-460.0,0.00016438,2]
[373208249,1752907617169,-1241.0910783,0.00016438,2]
[373208250,1752907617311,-787.8389217,0.00016438,2]
[373208251,1752907617340,-460.0,0.00016438,2]
[373208252,1752907617369,-460.0,0.00016438,2]
[373208253,1752907617398,-460.0,0.00016438,2]
[373208254,1752907617429,-570.89,0.00016438,2]
[373208255,1752907617458,-460.0,0.00016438,2]
[373208256,1752907617488,-460.0,0.00016438,2]
[373208257,1752907617522,-890.55,0.00016438,2]
[373208258,1752907617551,-460.0,0.00016438,2]
[373208259,1752907617581,-460.0,0.00016438,2]
[373208260,1752907617611,-460.0,0.00016438,2]
[373208261,1752907617643,-460.0,0.00016438,2]
[373208262,1752907617673,-460.0,0.00016438,2]
[373208263,1752907617703,-462.17091607,0.00016438,2]
[373208264,1752907617735,-714.83,0.00016438,2]
[373208265,1752907617768,-616.04,0.00016438,2]
[373208266,1752907617799,-461.43157834,0.00016438,2]
[373208267,1752907617829,-460.0,0.00016438,2]
[373208268,1752907617858,-411.57370728,0.00016438,2]
[373208269,1752907618072,-154.62392441,0.00016338,2]
[373208270,1752907618101,-49.34975322,0.00016438,2]
[373208271,1752907618131,-460.0,0.00016438,2]
[373208272,1752907618164,-460.0,0.00016438,2]
[373208273,1752907618194,-575.94,0.00016438,2]
[373208274,1752907618225,-460.0,0.00016438,2]
[373208275,1752907618256,-460.0,0.00016438,2]
[373208276,1752907618287,-636.57,0.00016438,2]
[373208277,1752907618319,-460.0,0.00016438,2]
[373208278,1752907618350,-460.7736839,0.00016438,2]
[373208279,1752907618382,-2565.13,0.00016438,2]
[373208280,1752907618412,-460.0,0.00016438,2]
[373208281,1752907618442,-463.64171369,0.00016438,2]
[373208282,1752907618471,-460.0,0.00016438,2]
[373208283,1752907618501,-460.0,0.00016438,2]
[373208284,1752907618532,-460.0,0.00016438,2]
[373208285,1752907618804,-4386.11,0.00016438,2]
[373208286,1752907618835,-460.0,0.00016438,2]
[373208287,1752907618864,-257.02225709,0.00016438,2]
[373208288,1752907618893,-460.0,0.00016438,2]
[373208289,1752907618924,-460.0,0.00016438,2]
[373208290,1752907618954,-519.01404181,0.00016438,2]
[373208291,1752907618983,-460.0,0.00016438,2]
[373208292,1752907619012,-460.0,0.00016438,2]
[373208293,1752907619041,-460.0,0.00016438,2]
[373208294,1752907619071,-460.0,0.00016438,2]
[373208295,1752907619103,-460.0,0.00016438,2]
[373208296,1752907619133,-460.0,0.00016438,2]
[373208297,1752907619166,-460.0,0.00016438,2]
[373208298,1752907619338,-504.53712131,0.00016438,2]
[373208299,1752907619369,-460.0,0.00016438,2]
[373208300,1752907619400,-566.78,0.00016438,2]
[373208301,1752907619430,-462.12533681,0.00016438,2]
[373208302,1752907619462,-461.90675008,0.00016438,2]
[373208303,1752907619492,-461.28928091,0.00016438,2]
[373208304,1752907619524,-460.0,0.00016438,2]
[373208305,1752907619554,-460.0,0.00016438,2]
[373208306,1752907619585,-463.54073988,0.00016438,2]
[373208307,1752907619617,-460.0,0.00016438,2]
[373208308,1752907619650,-460.0,0.00016438,2]
[373208309,1752907619681,-463.64204059,0.00016438,2]
[373208310,1752907619710,-460.0,0.00016438,2]
[373208311,1752907619743,-782.79,0.00016438,2]
[373208312,1752907619773,-461.08649897,0.00016438,2]
[373208313,1752907619803,-460.68969787,0.00016438,2]
[373208314,1752907619835,-609.33,0.00016438,2]
[373208315,1752907619866,-460.0,0.00016438,2]
[373208316,1752907619897,-460.0,0.00016438,2]
[373208317,1752907619926,-460.0,0.00016438,2]
[373208318,1752907620183,-461.32688963,0.00016438,2]
[373208319,1752907620212,-562.24029966,0.00016438,2]
[373208320,1752907620244,-460.0,0.00016438,2]
[373208321,1752907620278,-460.48432983,0.00016438,2]
[373208322,1752907620309,-460.0,0.00016438,2]
[373208323,1752907620340,-460.0,0.00016438,2]
[373208324,1752907620370,-460.0,0.00016438,2]
[373208325,1752907620400,-461.93422751,0.00016438,2]
[373208326,1752907620430,-460.0,0.00016438,2]
[373208327,1752907620462,-486.24,0.00016438,2]
[373208328,1752907620492,-460.0,0.00016438,2]
[373208329,1752907620523,-460.0,0.00016438,2]
[373208330,1752907620552,-465.08447723,0.00016438,2]
[373208331,1752907620581,-515.43029565,0.00016438,2]
[373208332,1752907620611,-460.0,0.00016438,2]
[373208333,1752907620640,-460.0,0.00016438,2]
[373208334,1752907620669,-460.0,0.00016438,2]
[373208335,1752907620698,-460.0,0.00016438,2]
[373208336,1752907620728,-460.0,0.00016438,2]
[373208337,1752907620758,-460.0,0.00016438,2]
[373208338,1752907620787,-460.0,0.00016438,2]
[373208339,1752907621080,-1526.91,0.00016438,2]
[373208340,1752907621110,-460.0,0.00016438,2]
[373208341,1752907621139,-460.0,0.00016438,2]
[373208342,1752907621171,-508.05,0.00016438,2]
[373208343,1752907621200,-588.60721694,0.00016438,2]
[373208344,1752907621232,-2847.49,0.00016438,2]
[373208345,1752907621268,-1921.5,0.00016438,2]
[373208346,1752907621299,-460.0,0.00016438,2]
[373208347,1752907621329,-460.0,0.00016438,2]
[373208348,1752907621360,-460.0,0.00016438,2]
[373208349,1752907621390,-154.88556612,0.00016438,2]
[373208350,1752907621578,-305.11443388,0.00016438,2]
[373208351,1752907621610,-460.0,0.00016438,2]
[373208352,1752907621641,-460.0,0.00016438,2]
[373208353,1752907621674,-3168.93,0.00016438,2]
[373208354,1752907621704,-460.0,0.00016438,2]
[373208355,1752907621734,-460.0,0.00016438,2]
[373208356,1752907621764,-460.0,0.00016438,2]
[373208357,1752907621793,-460.0,0.00016438,2]
[373208358,1752907621824,-460.0,0.00016438,2]
[373208359,1752907621855,-460.95949171,0.00016438,2]
[373208360,1752907621887,-460.0,0.00016438,2]
[373208361,1752907621916,-460.0,0.00016438,2]
[373208362,1752907621946,-460.0,0.00016438,2]
[373208363,1752907621976,-461.25224901,0.00016438,2]
[373208364,1752907622006,-460.0,0.00016438,2]
[373208365,1752907622288,-1633.8,0.00016438,2]
[373208366,1752907622320,-460.51757335,0.00016438,2]
[373208367,1752907622352,-460.0,0.00016438,2]
[373208368,1752907622383,-461.24939302,0.00016438,2]
[373208369,1752907622415,-460.0,0.00016438,2]
[373208370,1752907622449,-3148.5,0.00016438,2]
[373208371,1752907622482,-978.85,0.00016438,2]
[373208372,1752907622516,-460.38812788,0.00016438,2]
[373208373,1752907622548,-460.0,0.00016438,2]
[373208374,1752907622579,-460.0,0.00016438,2]
[373208375,1752907622611,-460.0,0.00016438,2]
[373208376,1752907622643,-460.0,0.00016438,2]
[373208377,1752907623259,-460.0,0.00016438,2]
[373208378,1752907623292,-460.0,0.00016438,2]
[373208379,1752907623324,-460.0,0.00016438,2]
[373208380,1752907623357,-461.29094081,0.00016438,2]
[373208381,1752907623390,-464.3030722,0.00016438,2]
[373208382,1752907623421,-557.32636232,0.00016438,2]
[373208383,1752907623454,-629.76,0.00016438,2]
[373208384,1752907623486,-499.24,0.00016438,2]
[373208385,1752907623518,-460.0,0.00016438,2]
[373208386,1752907623548,-460.0,0.00016438,2]
[373208387,1752907623579,-219.50755186,0.00016438,2]
[373208388,1752907623611,-792.23,0.00016438,2]
[373208389,1752907623644,-500.0,0.00016438,2]
[373208390,1752907623676,-460.0,0.00016438,2]
[373208391,1752907623708,-500.0,0.00016438,2]
[373208392,1752907623739,-500.0,0.00016438,2]
[373208393,1752907623771,-460.0,0.00016438,2]
[373208394,1752907623803,-292.83778547,0.00016438,2]
[373208395,1752907623836,-460.0,0.00016438,2]
[373208396,1752907623871,-500.0,0.00016438,2]
[373208397,1752907623909,-307.00857468,0.00016438,2]
[373208398,1752907624116,-192.99142532,0.00016438,2]
[373208399,1752907624149,-500.0,0.00016438,2]
[373208400,1752907624185,-460.0,0.00016438,2]
[373208401,1752907624219,-500.0,0.00016438,2]
[373208402,1752907624250,-460.0,0.00016438,2]
[373208403,1752907624282,-500.0,0.00016438,2]
[373208404,1752907624314,-166.0,0.00016438,2]
[373208405,1752907625007,460.0,0.00016438,2]
[373208406,1752907625378,500.0,0.00016438,2]
[373208407,1752907625962,500.0,0.00016438,2]
[373208408,1752907626347,460.0,0.00016438,2]
[373208409,1752907627129,5000.0,0.000165,2]
[373208410,1752907627426,154.62392441,0.00016338,2]
[373208411,1752907627956,462.76049366,0.00016438,2]
[373208412,1752907628036,300.0,0.00016437,2]
[373208413,1752907628729,150.0,0.00015182,2]
[373208414,1752907629189,6454.63273129,0.00016438,2]
[373208415,1752907629214,20000.0,0.00016438,2]
[373208416,1752907629239,20000.0,0.00016438,2]
[373208417,1752907629276,3545.36726871,0.00016438,2]
[373208418,1752907629330,460.0,0.00016438,2]
[373208419,1752907629371,150.0,0.00015905,2]
[373208420,1752907630023,154.62392441,0.00016338,2]
[373208421,1752907630058,460.0,0.00016438,2]
[373208422,1752907630181,462.44371155,0.00016438,2]
[373208423,1752907630260,460.0,0.00016438,2]
[373208424,1752907630374,460.0,0.00016438,2]
[373208425,1752907631823,154.62392441,0.00016338,2]
[373208426,1752907632824,588.5,0.00016438,2]
[373208427,1752907634856,460.0,0.00016438,2]
[373208428,1752907635026,460.0,0.00016438,2]
[373208429,1752907635790,460.0,0.00016438,2]
[373208430,1752907636411,460.0,0.00016438,2]
[373208431,1752907636700,5000.0,0.000165,2]
[373208432,1752907637994,460.0,0.00016438,2]
[373208433,1752907638037,460.0,0.00016438,2]
[373208434,1752907638367,460.0,0.00016438,2]
[373208435,1752907639872,460.0,0.00016438,2]
[373208436,1752907639907,460.0,0.00016438,2]
[373208437,1752907640235,460.0,0.00016438,2]
[373208438,1752907640787,819.5,0.00016438,2]
[373208439,1752907642132,460.0,0.00016438,2]
[373208440,1752907644938,460.0,0.00016438,2]
[373208441,1752907645152,460.0,0.00016438,2]
[373208442,1752907646379,460.0,0.00016438,2]
[373208443,1752907648846,473.15896719,0.00016438,2]
[373208444,1752907649696,371.78220373,0.00016438,2]
[373208445,1752907649721,89.82029723,0.00016438,2]
[373208446,1752907656790,460.0,0.00016438,2]
[373208447,1752907658768,3198.65,0.00016438,2]
[373208448,1752907661419,460.0,0.00016438,2]
[373208449,1752907661856,460.0,0.00016438,2]
[373208450,1752907663160,461.83898035,0.00016438,2]
[373208451,1752907664067,460.0,0.00016438,2]
[373208452,1752907664413,460.0,0.00016438,2]
[373208453,1752907665247,460.0,0.00016438,2]
[373208454,1752907665952,460.75468206,0.00016438,2]
[373208455,1752907670602,460.0,0.00016438,2]
[373208456,1752907674183,460.0,0.00016438,2]
[373208457,1752907675181,460.0,0.00016438,2]
[373208458,1752907676122,460.0,0.00016438,2]
[373208459,1752907678217,1266.66,0.00016438,2]
[373208460,1752907678662,1848.02,0.00016438,2]
[373208461,1752907679164,460.67562753,0.00016438,2]
[373208462,1752907679202,460.0,0.00016438,2]
[373208463,1752907680533,579.8,0.00016438,2]
[373208464,1752907684956,460.0,0.00016438,2]
[373208465,1752907687836,630.59,0.00016438,2]
[373208466,1752907688968,340.15799508,0.00016438,2]
[373208467,1752907689101,460.0,0.00016438,2]
[373208468,1752907690702,213.96772786,0.00016438,2]
[373208469,1752907692194,460.0,0.00016438,2]
[373208470,1752907692520,460.0,0.00016438,2]
[373208471,1752907693046,460.0,0.00016438,2]
[373208472,1752907693180,460.0,0.00016438,2]
[373208473,1752907694708,460.0,0.00016438,2]
[373208474,1752907694766,460.0,0.00016438,2]
[373208475,1752907698243,1709.06468989,0.00016438,2]
[373208476,1752907698271,485.60531011,0.00016438,2]
[373208477,1752907698328,460.0,0.00016438,2]
[373208478,1752907699604,460.0,0.00016438,2]
[373208479,1752907700091,460.0,0.00016438,2]
[373208480,1752907700852,580.03797569,0.00016438,2]
[373208481,1752907701107,460.0,0.00016438,2]
[373208482,1752907701171,460.0,0.00016438,2]
[373208483,1752907703287,7435.29,0.00016438,2]
[373208484,1752907704222,460.0,0.00016438,2]
[373208485,1752907705636,460.0,0.00016438,2]
[373208486,1752907706255,460.0,0.00016438,2]
[373208487,1752907707905,463.56213255,0.00016438,2]
[373208488,1752907708170,460.0,0.00016438,2]
[373208489,1752907709798,460.0,0.00016438,2]
[373208490,1752907711597,460.0,0.00016438,2]
[373208491,1752907712144,460.0,0.00016438,2]
[373208492,1752907712250,1136.64,0.00016438,2]
[373208493,1752907713420,460.0,0.00016438,2]
[373208494,1752907714126,460.0,0.00016438,2]
[373208495,1752907714351,460.0,0.00016438,2]
[373208496,1752907715239,460.0,0.00016438,2]
[373208497,1752907716279,460.0,0.00016438,2]
[373208498,1752907718966,460.0,0.00016438,2]
[373208499,1752907721161,460.0,0.00016438,2]
[373208500,1752907721255,460.0,0.00016438,2]
[373208501,1752907723051,460.0,0.00016438,2]
[373208502,1752907723743,238.86458165,0.00016438,2]
[373208503,1752907723768,221.13541835,0.00016438,2]
[373208504,1752907724792,460.0,0.00016438,2]
[373208505,1752907725460,761.71,0.00016438,2]
[373208506,1752907725615,460.0,0.00016438,2]
[373208507,1752907726027,460.0,0.00016438,2]
[373208508,1752907727064,684.42,0.00016438,2]
[373208509,1752907728468,460.0,0.00016438,2]
[373208510,1752907728934,460.0,0.00016438,2]
[373208511,1752907729660,460.0,0.00016438,2]
[373208512,1752907731839,460.0,0.00016438,2]
[373208513,1752907731979,460.0,0.00016438,2]
[373208514,1752907733179,461.40730842,0.00016438,2]
[373208515,1752907734198,460.0,0.00016438,2]
[373208516,1752907738767,245.50016698,0.00016438,2]
[373208517,1752907741590,572.50339273,0.00016338,2]
[373208518,1752907744388,460.0,0.00016438,2]
[373208519,1752907744702,460.0,0.00016438,2]
[373208520,1752907745148,460.0,0.00016438,2]
[373208521,1752907746416,460.0,0.00016438,2]
[373208522,1752907746449,460.0,0.00016438,2]
[373208523,1752907747221,727.96,0.00016438,2]
[373208524,1752907748997,460.0,0.00016438,2]
[373208525,1752907749323,462.40065176,0.00016438,2]
[373208526,1752907749677,460.0,0.00016438,2]
[373208527,1752907750788,705.88,0.00016438,2]
[373208528,1752907750996,460.0,0.00016438,2]
[373208529,1752907752168,1405.27,0.00016438,2]
[373208530,1752907752994,188.91880642,0.00016438,2]
[373208531,1752907753510,460.0,0.00016438,2]
[373208532,1752907754336,460.0,0.00016438,2]
[373208533,1752907755168,460.0,0.00016438,2]
[373208534,1752907758161,4362.89425534,0.00016438,2]
[373208535,1752907758189,20.18574466,0.00016438,2]
[373208536,1752907760931,2778.31,0.00016438,2]
[373208537,1752907762052,460.0,0.00016438,2]
[373208538,1752907762659,677.34,0.00016438,2]
[373208539,1752907764674,554.75904749,0.00016438,2]
[373208540,1752907765434,692.73,0.00016438,2]
[373208541,1752907765466,460.0,0.00016438,2]
[373208542,1752907766785,460.0,0.00016438,2]
[373208543,1752907767463,460.0,0.00016438,2]
[373208544,1752907767685,460.0,0.00016438,2]
[373208545,1752907768174,460.0,0.00016438,2]
[373208546,1752907770478,460.0,0.00016438,2]
[373208548,1752907771385,460.0,0.00016438,2]
[373208549,1752907771481,460.0,0.00016438,2]
[373208550,1752907775191,853.43,0.00016438,2]
[373208551,1752907777187,461.53405709,0.00016438,2]
[373208552,1752907777225,561.34,0.00016438,2]
[373208553,1752907777390,1531.6554238,0.00015831,2]
[373208554,1752907779393,460.0,0.00016438,2]
[373208555,1752907780050,963.81,0.00016438,2]
[373208556,1752907782574,460.0,0.00016438,2]
[373208557,1752907784425,460.0,0.00016438,2]
[373208558,1752907785010,460.0,0.00016438,2]
[373208559,1752907785274,460.0,0.00016438,2]
[373208560,1752907785503,460.0,0.00016438,2]
[373208561,1752907786830,460.0,0.00016438,2]
[373208562,1752907786979,641.44,0.00016438,2]
[373208563,1752907787704,460.0,0.00016438,2]
[373208564,1752907790068,460.0,0.00016438,2]
[373208565,1752907791351,460.0,0.00016438,2]
[373208566,1752907793851,460.0,0.00016438,2]
[373208567,1752907793892,460.0,0.00016438,2]
[373208568,1752907794017,460.0,0.00016438,2]
[373208569,1752907797585,143.46572696,0.00016438,2]
[373208570,1752907797610,316.53427304,0.00016438,2]
[373208571,1752907799350,460.0,0.00016438,2]
[373208572,1752907799455,461.06716119,0.00016438,2]
[373208573,1752907799688,529.8,0.00016438,2]
[373208574,1752907799981,5000.0,0.000165,2]
[373208575,1752907800781,520.08,0.00016438,2]
[373208576,1752907800971,1547.66,0.00016438,2]
[373208577,1752907801251,373.88294649,0.00016438,2]
[373208578,1752907802773,460.0,0.00016438,2]
[373208579,1752907803060,460.0,0.00016438,2]
[373208580,1752907804004,2037.7,0.00016438,2]
[373208581,1752907805997,461.87348327,0.00016438,2]
[373208582,1752907806809,460.0,0.00016438,2]
[373208583,1752907808959,460.0,0.00016438,2]
[373208584,1752907809906,460.0,0.00016438,2]
[373208585,1752907812116,460.0,0.00016438,2]
[373208586,1752907812961,2781.98,0.00016438,2]
[373208587,1752907813240,460.0,0.00016438,2]
[373208588,1752907813658,460.0,0.00016438,2]
[373208589,1752907814888,463.41410887,0.00016438,2]
[373208590,1752907815997,460.0,0.00016438,2]
[373208591,1752907816937,150.0,0.00014715,2]
[373208592,1752907817416,756.00802714,0.000165,2]
[373208593,1752907817443,4243.99197286,0.000165,2]
[373208594,1752907821230,463.032645,0.00016438,2]
[373208595,1752907821265,461.68123563,0.00016438,2]
[373208596,1752907822871,460.0,0.00016438,2]
[373208597,1752907825024,460.0,0.00016438,2]
[373208598,1752907825973,460.0,0.00016438,2]
[373208599,1752907827044,460.0,0.00016438,2]
[373208600,1752907828078,1565.73,0.00016438,2]
[373208601,1752907828630,460.0,0.00016438,2]
[373208602,1752907830827,460.0,0.00016438,2]
[373208603,1752907831165,460.0,0.00016438,2]
[373208611,1752907831691,460.0,0.00016438,2]
[373208628,1752907831856,460.0,0.00016438,2]
[373208652,1752907832077,460.0,0.00016438,2]
[373208671,1752907832244,460.0,0.00016438,2]
[373208689,1752907832565,5000.0,0.000165,2]
[373208690,1752907834603,461.61239973,0.00016438,2]
[373208691,1752907834992,460.0,0.00016438,2]
[373208692,1752907835085,460.0,0.00016438,2]
[373208693,1752907835279,460.0,0.00016438,2]
[373208695,1752907835990,976.4,0.00016438,2]
[373208696,1752907836221,387.55174678,0.00016438,2]
[373208697,1752907836247,72.44825322,0.00016438,2]
[373208698,1752907836281,460.0,0.00016438,2]
[373208699,1752907837247,460.0,0.00016438,2]
[373208769,1752907838210,-160.22889376,0.0001651,2]